bitfinex/quotes_ETHUSD_20220308
["timestamp","ask_amount","ask_price","bid_price","bid_amount"]
[1646698303636,4.97250594,2488.7,2488.4,0.00350411]
[1646698303869,4.97250594,2488.7,2488.2,0.0558979]
[1646698303870,2.0107099,2488.6,2488.2,0.0558979]
[1646698304072,9.0213999,2488.6,2488.2,0.0558979]
[1646698304273,9.0213999,2488.6,2488.0,0.074647]
[1646698304274,4.5,2488.5,2488.0,0.01401824]
[1646698304471,5.99658,2488.5,2488.0,0.01401824]
[1646698304671,4.0225823,2488.4,2488.0,0.01401824]
[1646698304875,1.30558,2488.5,2488.0,0.01401824]
[1646698305072,0.3,2488.5,2488.0,0.01401824]
[1646698305275,1.2057,2488.6,2488.0,0.01401824]
[1646698305476,1.2057,2488.6,2488.1,1.42591318]
[1646698306282,0.93676587,2488.2,2488.1,1.42591318]
[1646698306479,0.99794104,2488.5,2488.4,0.36652005]
[1646698307479,4.5,2488.3,2487.7,0.00978556]
[1646698307757,4.5,2488.3,2487.5,0.00129766]
[1646698307758,4.99665,2488.2,2487.5,0.00129766]
[1646698307957,4.99665,2488.2,2487.4,0.45255353]
[1646698307958,2.0115029,2488.0,2487.4,0.45255353]
[1646698308256,2.0115029,2488.0,2487.2,0.0188522]
[1646698308257,5.0,2487.7,2487.2,0.0188522]
[1646698308454,0.491,2487.6,2486.9,0.0580271]
[1646698308959,7.7565,2487.6,2487.1,1.39057224]
[1646698309255,3.6566749,2487.6,2486.9,0.0580271]
[1646698309455,0.89505763,2487.2,2487.1,1.39185888]
[1646698309656,0.89505763,2487.2,2486.9,0.0580271]
[1646698310056,0.3,2487.4,2487.1,1.38928255]
[1646698310260,1.1537,2487.6,2487.1,1.38928255]
[1646698311060,1.05504097,2487.5,2487.1,1.38928255]
[1646698311267,2.06072097,2487.5,2487.1,1.38928255]
[1646698311488,2.06072097,2487.5,2486.9,0.0580271]
[1646698311489,3.36649167,2487.5,2486.9,0.0580271]
[1646698312281,1.14636189,2487.1,2486.9,0.0580271]
[1646698312982,1.14636189,2487.1,2487.0,1.44379244]
[1646698313382,1.14636189,2487.1,2487.0,1.43939044]
[1646698313582,1.14636189,2487.1,2487.0,0.0503066]
[1646698313783,4.5,2486.9,2486.6,0.0396913]
[1646698313994,4.5,2486.9,2486.6,0.05285568]
[1646698314585,4.5,2486.6,2486.2,0.0554817]
[1646698314785,5.3096,2486.8,2485.8,0.0553501]
[1646698314786,2.0125497,2486.4,2485.8,0.0553501]
[1646698314985,7.0125497,2486.4,2486.0,1.33430088]
[1646698315243,2.0125497,2486.4,2486.1,0.88097529]
[1646698315442,2.3125497,2486.4,2485.8,0.0553501]
[1646698315640,1.01822762,2486.3,2485.8,0.0553501]
[1646698316040,2.02456762,2486.3,2485.8,0.0553501]
[1646698316239,1.01822762,2486.3,2485.8,0.0553501]
[1646698317047,0.57699558,2486.4,2485.9,4.993468]
[1646698317240,1.0060923,2486.6,2485.9,4.993468]
[1646698317241,7.3535,2486.6,2486.0,1.00601]
[1646698318043,8.2363847,2486.6,2486.0,4.00601]
[1646698318247,8.2363847,2486.6,2486.0,2.00601]
[1646698318445,2.0115,2487.5,2486.3,3.0]
[1646698318644,0.00506131,2486.6,2486.2,0.0151347]
[1646698318888,8.4538,2488.1,2486.6,0.00060272]
[1646698319084,8.4538,2488.1,2486.6,3.40080272]
[1646698319290,8.4538,2488.1,2486.6,4.00060272]
[1646698319486,0.90444696,2487.3,2486.8,2.01113]
[1646698319692,0.90444696,2487.3,2487.0,1.00557]
[1646698320792,0.90444696,2487.3,2486.8,3.01113]
[1646698320994,0.90444696,2487.3,2486.6,0.00060272]
[1646698321191,3.28394696,2487.3,2486.4,2.57120408]
[1646698321991,3.28394696,2487.3,2486.3,2.01151]
[1646698322192,0.00501634,2487.0,2486.3,2.01426884]
[1646698322391,5.29567696,2487.3,2487.1,0.00149296]
[1646698322392,3.28394696,2487.3,2487.1,0.00149296]
[1646698322828,2.3795,2487.3,2487.1,0.00149296]
[1646698323428,1.1791,2488.1,2487.2,3.0]
[1646698323631,1.1791,2488.1,2487.1,0.12740572]
[1646698324025,1.06891584,2488.2,2487.3,0.88596041]
[1646698325027,1.06891584,2488.2,2487.4,1.00527]
[1646698325230,1.06891584,2488.2,2487.6,1.00526]
[1646698325433,1.00529,2488.4,2487.6,1.00526]
[1646698325632,2.3227,2488.6,2487.6,1.00526]
[1646698326134,2.3227,2488.6,2487.9,3.0]
[1646698326380,1.15878933,2489.0,2488.1,1.22568555]
[1646698326583,3.0,2489.5,2488.2,3.0]
[1646698326584,9.3899,2489.4,2488.2,3.0]
[1646698326779,19.3456,2489.4,2488.2,4.00128662]
[1646698327083,3.0,2489.5,2488.2,4.00128662]
[1646698327280,3.0,2489.5,2488.3,2.00978]
[1646698327281,0.00418679,2488.4,2488.3,2.00978]
[1646698327481,0.00418679,2488.4,2488.3,0.00128662]
[1646698327680,0.00418679,2488.4,2488.0,1.0]
[1646698327880,1.0052443,2488.8,2487.5,0.00128662]
[1646698328077,1.0052443,2488.8,2487.4,3.491]
[1646698328278,0.00418694,2488.5,2487.6,1.00523]
[1646698328478,0.00418694,2488.5,2487.6,1.40671662]
[1646698328678,1.10737455,2488.3,2487.6,1.00651662]
[1646698328878,1.10737455,2488.3,2487.7,2.01034]
[1646698329078,7.2464,2488.8,2487.7,2.01034]
[1646698329481,0.00418694,2488.1,2487.7,2.01034]
[1646698329688,0.00418694,2488.1,2487.3,0.00128662]
[1646698329880,0.00418694,2488.1,2487.1,0.12869234]
[1646698330138,0.00418694,2488.1,2487.3,2.01081]
[1646698330332,2.1462648,2488.6,2487.3,2.01081]
[1646698330532,1.1409,2488.6,2487.3,2.01081]
[1646698330732,1.1409,2488.6,2487.5,1.00543]
[1646698330733,0.95975327,2488.3,2487.5,1.00543]
[1646698331033,1.1409,2488.6,2487.5,4.40563]
[1646698331034,0.00418694,2487.7,2487.5,4.40563]
[1646698331234,0.491,2489.3,2487.5,4.40563]
[1646698331235,6.0295,2489.1,2488.1,2.00988]
[1646698331434,1.1348,2489.6,2488.3,3.4002]
[1646698331435,11.3397,2489.4,2488.3,3.4002]
[1646698331641,2.283,2489.6,2488.7,3.4002]
[1646698331833,1.01303884,2490.1,2489.3,1.13336823]
[1646698332036,6.0295,2490.3,2489.4,3.0]
[1646698332037,2.283,2490.3,2489.4,3.0]
[1646698332246,1.0,2490.6,2489.9,3.0]
[1646698332433,1.0,2490.6,2490.3,3.4002]
[1646698332634,10.133,2491.8,2490.5,3.0]
[1646698332635,2.283,2491.8,2490.5,3.0]
[1646698332833,8.9905,2492.3,2490.9,1.00373]
[1646698333036,8.9905,2492.3,2490.9,6.57171235]
[1646698333235,1.2245,2492.2,2490.9,7.57171235]
[1646698333637,1.2245,2492.2,2491.1,2.00755]
[1646698333911,1.2245,2492.2,2491.2,2.00729]
[1646698334107,1.2245,2492.2,2490.6,3.01117]
[1646698334108,0.491,2492.2,2490.6,3.01117]
[1646698334308,9.96,2492.1,2490.6,1.00409]
[1646698334507,9.96,2492.1,2490.7,3.5]
[1646698334508,7.35,2491.8,2490.7,3.5]
[1646698334709,10.9219,2491.7,2490.7,6.50789]
[1646698334912,6.9067,2491.7,2491.6,3.0]
[1646698335309,0.7614248,2492.6,2491.6,3.0]
[1646698335511,0.216879,2492.5,2492.3,3.0]
[1646698335715,0.216879,2492.4,2492.3,3.0]
[1646698335910,0.216879,2492.6,2492.3,3.0]
[1646698336114,1.09933731,2492.6,2492.3,3.0]
[1646698336311,0.216879,2492.5,2491.8,0.2006]
[1646698336511,3.0,2493.3,2492.4,3.0]
[1646698336512,8.5592166,2493.2,2492.4,3.0]
[1646698336713,8.5592166,2493.2,2492.0,0.2005]
[1646698336714,0.00516085,2492.6,2492.0,0.2005]
[1646698336912,0.2164924,2492.5,2492.2,3.0]
[1646698337112,0.2164924,2492.5,2492.2,2.13062167]
[1646698337730,0.3,2492.6,2492.2,2.13062167]
[1646698337933,26.1145166,2493.2,2492.3,3.5]
[1646698337934,0.00516089,2492.5,2492.3,3.5]
[1646698338132,0.00516089,2492.5,2492.4,2.13062167]
[1646698338731,18.0463,2493.2,2492.4,3.13400167]
[1646698338930,3.66446284,2493.1,2492.2,2.13062167]
[1646698339133,3.66446284,2493.1,2492.1,2.13062167]
[1646698339134,0.00418393,2492.6,2492.1,2.13062167]
[1646698339933,2.0075907,2492.7,2492.1,2.13062167]
[1646698340141,0.3,2492.6,2492.1,2.13062167]
[1646698340337,1.00482194,2492.5,2492.1,2.13062167]
[1646698340535,0.98468214,2492.3,2492.1,2.13062167]
[1646698340937,1.28468214,2492.3,2492.1,2.13062167]
[1646698341395,1.28950414,2492.3,2492.1,2.13062167]
[1646698341580,5.0,2492.2,2491.3,0.2006]
[1646698341786,7.8425,2492.2,2491.3,0.2006]
[1646698341983,7.8425,2492.2,2491.1,0.2006]
[1646698341984,14.0725,2492.2,2491.1,0.2006]
[1646698342182,14.0725,2492.2,2491.0,1.00393]
[1646698342482,14.0725,2492.2,2491.2,1.00385]
[1646698342685,0.98178043,2491.8,2491.2,1.00385]
[1646698342886,10.9465,2491.7,2491.2,1.00385]
[1646698343084,9.8062,2491.7,2491.3,0.2006]
[1646698343285,1.1403,2491.6,2491.3,0.2006]
[1646698343685,1.1403,2491.6,2491.3,2.20803]
[1646698343885,1.1403,2491.6,2491.3,0.2006]
[1646698344085,1.1403,2491.6,2491.2,1.00384]
[1646698344086,1.14507996,2491.6,2491.2,1.00384]
[1646698344285,1.14507996,2491.6,2491.0,0.2006]
[1646698344487,1.14507996,2491.6,2490.8,0.2006]
[1646698344885,1.1403,2491.6,2491.0,2.00762]
[1646698345143,0.00471514,2491.4,2491.1,0.2006]
[1646698345337,0.00471514,2491.4,2491.2,1.0038]
[1646698345733,0.00471514,2491.4,2491.3,1.00375]
[1646698346134,1.1403,2491.6,2491.3,1.00375]
[1646698346332,1.1403,2491.6,2491.1,3.00754]
[1646698346333,0.00471514,2491.4,2491.1,3.00754]
[1646698346533,0.00471514,2491.4,2491.2,1.00379]
[1646698346936,0.00471514,2491.4,2491.1,1.0]
[1646698347133,0.00471514,2491.4,2491.0,5.01519]
[1646698347335,12.4701,2491.6,2491.0,5.01519]
[1646698347533,0.90533655,2491.4,2491.0,5.01519]
[1646698347733,1.1926,2491.3,2491.0,5.01519]
[1646698347939,2.4242,2491.3,2491.0,5.01519]
[1646698348437,0.3,2491.6,2491.0,5.01519]
[1646698348636,0.00464268,2491.3,2491.0,5.01519]
[1646698349392,0.00464268,2491.3,2491.0,3.00757]
[1646698349596,2.2906,2491.4,2491.0,3.00757]
[1646698350001,0.00464268,2491.3,2491.0,3.00757]
[1646698350196,0.00464268,2491.3,2491.0,2.00757]
[1646698350397,0.00464268,2491.3,2491.0,3.00757]
[1646698350606,0.00464268,2491.3,2491.0,2.00757]
[1646698350799,2.2906,2491.4,2491.0,3.00757]
[1646698351001,0.00465413,2491.3,2491.0,2.00757]
[1646698351200,0.00465413,2491.3,2491.0,3.00757]
[1646698351404,0.00465413,2491.3,2491.0,2.00757]
[1646698351602,0.00465413,2491.3,2491.0,3.00757]
[1646698351802,0.00465413,2491.3,2491.0,2.00757]
[1646698352002,2.2906,2491.4,2491.0,3.00757]
[1646698352206,2.2906,2491.4,2491.0,4.01136]
[1646698352407,0.00465636,2491.3,2491.0,4.01136]
[1646698353241,2.2906,2491.4,2491.0,5.05318742]
[1646698353438,2.2906,2491.4,2491.0,5.45458742]
[1646698353643,0.00465636,2491.3,2491.0,5.45458742]
[1646698353843,0.00465636,2491.3,2491.1,1.40514]
[1646698354244,0.00465636,2491.3,2491.1,1.70514]
[1646698354849,0.00465467,2491.3,2491.1,1.70514]
[1646698355248,9.8062,2491.7,2491.4,0.4014]
[1646698355249,9.69825557,2491.7,2491.4,0.4014]
[1646698355448,9.6951,2492.6,2491.4,0.4014]
[1646698355449,3.5346,2492.6,2491.6,3.4014]
[1646698355653,3.5346,2492.6,2491.9,0.4014]
[1646698355855,3.5346,2492.6,2491.9,13.092]
[1646698356049,3.5346,2492.6,2491.9,13.042]
[1646698356250,3.5346,2492.6,2492.3,1.0607633]
[1646698356251,2.3849,2492.6,2492.3,1.0607633]
[1646698357283,2.3849,2492.6,2492.3,1.3607633]
[1646698358085,2.3849,2492.6,2492.3,1.00326]
[1646698358286,2.3849,2492.6,2492.2,3.00651]
[1646698358490,2.3849,2492.6,2492.1,1.0]
[1646698358684,2.3849,2492.6,2491.9,4.00956]
[1646698359085,2.3849,2492.6,2492.0,2.007]
[1646698359284,2.3849,2492.6,2492.1,1.00353]
[1646698359485,0.00516057,2492.4,2492.1,1.00353]
[1646698359887,0.00516057,2492.4,2492.0,2.007]
[1646698360536,0.00516057,2492.4,2491.6,2.00725]
[1646698360537,2.6849,2492.6,2491.7,2.00721]
[1646698360736,0.00516059,2492.3,2491.7,2.00721]
[1646698360938,0.00516059,2492.3,2491.9,1.00363]
[1646698361737,9.96826795,2492.6,2491.9,1.00363]
[1646698361938,0.00516063,2492.2,2492.0,1.00347]
[1646698362138,0.00516063,2492.2,2492.1,1.00347]
[1646698362738,0.00516063,2492.2,2492.1,1.20407]
[1646698362939,8.9531,2492.6,2492.1,2.73458747]
[1646698363239,0.00504967,2492.3,2492.2,0.4014]
[1646698363888,0.00504967,2492.3,2492.1,4.13582747]
[1646698364088,8.9531,2492.6,2492.3,0.4014]
[1646698364289,0.00504963,2492.4,2492.3,2.70779]
[1646698364488,0.00504963,2492.4,2492.3,1.70462]
[1646698364689,0.00504963,2492.4,2492.3,2.70462]
[1646698365088,0.00504963,2492.4,2492.3,1.70462]
[1646698365292,8.9531,2492.6,2492.3,6.9176658]
[1646698365491,8.9531,2492.6,2492.3,20.113979]
[1646698365691,8.9531,2492.6,2492.5,0.4014]
[1646698366593,8.9531,2492.6,2492.4,1.00314]
[1646698366793,8.9531,2492.6,2492.5,0.2006]
[1646698367493,8.9531,2492.6,2492.4,1.00314]
[1646698367940,8.9531,2492.6,2492.2,2.00634]
[1646698367941,1.13015238,2492.5,2492.2,2.00634]
[1646698368136,1.13015238,2492.5,2491.1,9.0]
[1646698368137,4.63015238,2492.5,2491.1,9.0]
[1646698368334,4.93015238,2492.5,2491.1,9.0]
[1646698368535,6.97854792,2492.4,2491.1,9.0]
[1646698368733,3.5,2492.3,2491.2,0.2006]
[1646698368941,1.003932,2492.1,2491.2,0.2006]
[1646698369132,0.91385437,2491.4,2491.2,0.2006]
[1646698369334,8.7338,2491.3,2491.2,0.2006]
[1646698370540,8.7338,2491.3,2491.1,9.0]
[1646698370940,12.2338,2491.3,2491.1,9.0]
[1646698371139,8.7338,2491.3,2491.1,2.48351883]
[1646698371395,5.0,2491.2,2489.8,0.4012]
[1646698371602,5.0,2491.2,2489.9,1.51805315]
[1646698371603,3.991,2491.1,2489.9,1.51805315]
[1646698371792,3.991,2491.1,2489.8,0.4012]
[1646698371793,5.291,2491.1,2489.8,0.4012]
[1646698371993,1.00468,2490.5,2489.8,0.4012]
[1646698372196,3.21106479,2490.4,2489.8,0.33994729]
[1646698372399,5.0,2490.2,2489.1,4.01862]
[1646698372604,3.991,2490.1,2488.4,9.50204454]
[1646698372794,18.1571,2490.1,2488.6,0.010881]
[1646698372994,1.00488,2489.9,2488.7,1.72063189]
[1646698373195,4.99619,2489.8,2488.8,1.51983189]
[1646698373398,2.0102454,2489.7,2488.8,1.51983189]
[1646698373598,0.491,2489.6,2488.7,0.2008]
[1646698373797,3.991,2489.6,2488.7,0.2008]
[1646698373998,0.491,2489.6,2488.8,1.52000783]
[1646698374202,2.6102454,2489.7,2488.9,1.52000783]
[1646698374203,0.6,2489.7,2488.9,1.52000783]
[1646698374398,1.2492,2489.8,2489.0,1.72156848]
[1646698374598,1.2492,2489.8,2489.1,1.52074681]
[1646698374800,1.2492,2489.8,2489.2,1.52074681]
[1646698375000,1.2492,2489.8,2488.6,0.4014]
[1646698375001,1.2492,2489.8,2488.7,1.92214681]
[1646698375243,0.87093045,2489.5,2489.3,2.00904]
[1646698375439,10.92736371,2490.1,2489.0,3.5]
[1646698375440,5.09256371,2490.1,2489.0,3.5]
[1646698375642,1.2492,2490.0,2489.1,1.52072983]
[1646698376241,1.2492,2490.0,2488.7,3.5]
[1646698376242,2.55404,2490.0,2488.7,4.50485]
[1646698376440,2.55404,2490.0,2488.8,1.5191406]
[1646698376441,1.05293575,2489.2,2488.8,1.5191406]
[1646698376643,2.3491,2489.1,2488.8,1.5191406]
[1646698377241,2.3491,2489.1,2488.7,1.00481]
[1646698377441,2.3491,2489.1,2488.8,1.51974492]
[1646698378343,0.60331678,2489.1,2488.7,2.00481]
[1646698378543,0.60331678,2489.1,2488.7,1.00481]
[1646698378743,1.77191678,2489.1,2488.8,1.48550635]
[1646698379386,1.1686,2489.1,2488.8,2.49030635]
[1646698379583,1.1686,2489.1,2488.8,1.0048]
[1646698380488,1.2139,2489.3,2488.8,1.0048]
[1646698380489,1.2139,2489.3,2489.0,2.00913]
[1646698380689,5.09256371,2490.1,2489.1,6.4849653]
[1646698380887,5.09256371,2490.1,2489.2,4.9849653]
[1646698381089,0.7182166,2491.4,2489.2,4.9849653]
[1646698381090,0.7182166,2491.5,2489.4,12.5914]
[1646698381290,6.94758543,2491.4,2489.8,1.0042421]
[1646698381589,0.7182166,2491.7,2490.3,1.00402]
[1646698381794,0.7182166,2491.7,2490.4,3.91892724]
[1646698381995,3.0,2491.8,2490.5,0.4014]
[1646698381996,12.2876,2491.6,2490.5,0.4014]
[1646698382189,12.2876,2491.6,2490.8,0.01246891]
[1646698382389,12.2876,2491.6,2491.0,1.0035593]
[1646698382638,12.2876,2491.6,2491.3,0.4014]
[1646698382639,1.1484,2491.6,2491.3,0.4014]
[1646698382839,1.1484,2491.6,2491.3,4.2014]
[1646698383239,1.1484,2491.6,2491.3,5.2014]
[1646698383440,1.2139,2491.9,2491.4,21.10172]
[1646698383641,1.2355,2492.2,2491.6,13.59466]
[1646698383843,1.2355,2492.2,2491.8,4.40457]
[1646698384041,1.2355,2492.2,2491.9,3.991]
[1646698384240,1.2355,2492.2,2491.9,4.991]
[1646698384442,1.2355,2492.2,2492.0,3.00952]
[1646698384648,1.2355,2492.2,2492.0,6.01904]
[1646698384841,1.2355,2492.2,2492.1,1.00338]
[1646698384842,1.23967127,2492.2,2492.1,1.00338]
[1646698385445,0.00417127,2492.2,2492.1,1.00338]
[1646698385645,1.236,2493.1,2492.1,1.00338]
[1646698385851,1.1094188,2493.0,2492.4,2.08580789]
[1646698386145,1.1094188,2493.0,2492.1,1.00344]
[1646698386146,0.0051465,2492.3,2492.1,1.00344]
[1646698386398,0.0051465,2492.3,2492.1,2.00344]
[1646698386584,0.0051465,2492.3,2492.1,1.00344]
[1646698386783,0.0051465,2492.3,2492.2,1.00342]
[1646698386985,1.236,2493.1,2492.0,1.0]
[1646698387199,1.236,2493.1,2491.7,0.95805023]
[1646698387200,0.00514648,2492.3,2491.7,0.95805023]
[1646698388188,1.10932325,2492.5,2491.7,0.95805023]
[1646698388389,0.00514656,2492.1,2491.7,0.95805023]
[1646698388987,0.00514656,2492.1,2491.4,0.2006]
[1646698389390,1.10932325,2492.5,2491.4,0.2006]
[1646698389692,0.00499434,2492.0,2491.4,0.2006]
[1646698390133,0.00499434,2492.0,2491.7,0.87202431]
[1646698390337,0.00499434,2492.0,2491.8,0.2006]
[1646698390539,9.2416,2492.7,2491.8,0.2006]
[1646698390744,9.2416,2492.7,2491.8,5.50688]
[1646698391141,9.2416,2492.7,2491.8,6.80688]
[1646698391539,9.2416,2492.7,2492.0,1.00344]
[1646698391841,1.02666894,2492.6,2492.0,1.00344]
[1646698392040,9.2416,2492.7,2492.1,1.17364076]
[1646698392246,9.2416,2492.7,2492.2,1.00338]
[1646698393240,0.00508097,2492.6,2492.2,2.00676]
[1646698393642,0.00508097,2492.6,2492.5,1.94210884]
[1646698394187,3.5312,2492.8,2492.5,2.94525884]
[1646698394585,3.5312,2492.8,2492.5,4.94839814]
[1646698394586,0.00508003,2492.7,2492.5,4.94839814]
[1646698394791,6.237,2493.3,2492.7,7.90759]
[1646698394990,6.237,2493.3,2492.7,2.40759]
[1646698395188,11.2123,2493.8,2492.7,3.40759]
[1646698395389,11.2123,2493.8,2493.0,1.00287]
[1646698395790,11.2123,2493.8,2493.1,1.00287]
[1646698395992,12.39174713,2493.8,2493.1,0.91721142]
[1646698396191,12.39174713,2493.8,2493.2,1.00287]
[1646698396391,11.2123,2493.8,2493.2,1.00287]
[1646698396992,11.2123,2493.8,2493.2,4.50287]
[1646698397194,11.2123,2493.8,2493.3,2.00568]
[1646698397395,11.2123,2493.8,2493.4,2.0054509]
[1646698397644,11.2123,2493.8,2493.4,3.0081909]
[1646698397837,11.2123,2493.8,2493.6,1.19352378]
[1646698398037,0.0051393,2493.7,2493.6,1.19352378]
[1646698398637,0.0051393,2493.7,2493.5,1.05593921]
[1646698398840,6.4819,2494.4,2493.5,1.05593921]
[1646698398841,6.4819,2494.4,2493.7,5.5]
[1646698399040,0.77946931,2494.7,2493.8,6.9087424]
[1646698399041,0.06125271,2494.7,2493.8,6.9087424]
[1646698399243,0.06125271,2494.7,2493.9,13.3824]
[1646698399437,0.06125271,2494.7,2494.1,0.4014]
[1646698399640,0.06125271,2494.7,2494.2,4.3924]
[1646698399943,0.06125271,2494.7,2494.4,2.40567]
[1646698400138,0.06125271,2494.7,2494.4,7.99955]
[1646698400345,0.03,2495.2,2494.6,3.0]
[1646698400541,8.6673,2495.7,2494.8,4.5]
[1646698400542,2.3052,2495.7,2494.8,4.5]
[1646698400741,2.3052,2495.7,2494.9,3.991]
[1646698400942,2.3052,2495.7,2495.0,1.00183]
[1646698401142,1.22497159,2495.4,2495.0,3.005399]
[1646698401404,2.3052,2495.7,2495.0,1.00183]
[1646698401590,2.3052,2495.7,2495.0,2.00183]
[1646698401791,2.3052,2495.7,2495.0,1.00183]
[1646698402390,3.47150579,2495.7,2495.1,2.00435]
[1646698402597,3.47150579,2495.7,2495.1,4.00824]
[1646698403393,2.3052,2495.7,2495.1,1.0]
[1646698403796,1.1384,2495.9,2495.2,3.5]
[1646698403998,2.3584,2496.7,2495.4,3.0]
[1646698404195,4.051e-05,2495.5,2495.4,6.45019364]
[1646698404394,4.051e-05,2495.5,2495.4,4.491]
[1646698404794,0.95762214,2497.5,2495.5,4.5]
[1646698405006,0.0147384,2497.8,2496.6,3.25]
[1646698405256,0.0147384,2497.8,2496.8,5.5]
[1646698405449,0.0147384,2497.8,2497.0,3.0]
[1646698405649,0.0147384,2497.8,2497.1,1.491]
[1646698405854,0.87037536,2497.7,2497.2,1.0]
[1646698406251,0.87037536,2497.7,2496.7,0.13815948]
[1646698406448,0.87037536,2497.7,2496.7,0.43815948]
[1646698406649,0.87037536,2497.7,2496.7,0.13815948]
[1646698406976,0.90874146,2497.3,2496.9,0.5]
[1646698407250,0.00518,2497.3,2497.0,3.0]
[1646698407451,0.00518,2497.3,2497.1,7.5]
[1646698407452,6e-05,2497.3,2497.1,7.5]
[1646698407766,6.1001,2499.0,2497.1,7.5]
[1646698407767,1.24947512,2499.4,2497.4,12.19]
[1646698408060,0.0087712,2498.9,2498.4,5.497769]
[1646698408250,0.0105548,2499.7,2499.6,0.87232829]
[1646698408451,0.0105548,2499.7,2499.6,0.92005404]
[1646698408650,0.010347,2500.8,2499.7,5.5]
[1646698408906,3.6482029,2501.1,2499.8,12.681]
[1646698408907,0.0104918,2500.9,2499.8,12.681]
[1646698409090,0.0104918,2500.9,2500.1,3.85]
[1646698409291,0.0104918,2500.9,2500.2,0.491]
[1646698409292,1.12634175,2500.6,2500.2,0.491]
[1646698409589,0.0104918,2500.9,2500.2,0.491]
[1646698409789,0.0104918,2500.9,2500.1,1.6]
[1646698409790,0.05115811,2500.5,2499.9,1.0]
[1646698409996,0.00115811,2500.5,2499.9,1.0]
[1646698410194,0.05058969,2500.4,2499.9,0.3]
[1646698410396,1.17568593,2500.2,2499.9,0.3]
[1646698410592,1.17568593,2500.2,2499.6,0.04772575]
[1646698410593,0.05058969,2500.4,2499.6,0.04772575]
[1646698410994,0.05058969,2500.4,2499.7,0.491]
[1646698411392,0.00514844,2500.1,2499.7,0.791]
[1646698411793,0.00514844,2500.1,2499.2,1.0]
[1646698411794,1.1301325,2500.0,2499.2,1.0]
[1646698411993,1.1301325,2500.0,2499.1,1.0]
[1646698412193,0.00514844,2500.1,2499.0,0.491]
[1646698412394,0.00514844,2500.1,2499.2,0.491]
[1646698412639,9.19498969,2500.4,2499.3,1.491]
[1646698412836,0.0051486,2499.7,2499.3,1.491]
[1646698413041,0.0051486,2499.7,2499.3,12.681]
[1646698413238,4.86e-05,2499.7,2499.4,16.28727759]
[1646698413439,0.05058969,2500.4,2499.5,0.491]
[1646698413642,0.0104918,2500.9,2499.6,6.5334]
[1646698413839,3.508e-05,2500.0,2499.9,12.19]
[1646698414041,0.0104918,2500.9,2500.5,1.0]
[1646698414238,3.0583054,2501.5,2500.7,5.5]
[1646698414438,3.0583054,2501.5,2500.9,0.95303177]
[1646698414641,0.0583054,2501.5,2501.0,0.491]
[1646698414838,0.0583054,2501.5,2501.0,0.53758946]
[1646698415041,0.0583054,2501.5,2501.1,0.04602104]
[1646698415242,0.0583054,2501.5,2501.1,0.02834721]
[1646698415441,0.0583054,2501.5,2501.0,0.04658946]
[1646698415842,0.91643505,2501.2,2501.0,0.04658946]
[1646698416493,5.5,2501.1,2500.4,0.991]
[1646698416696,5.5,2501.1,2500.4,0.5]
[1646698416893,6.5,2501.1,2500.4,0.5]
[1646698417091,5.5,2501.1,2500.4,0.5]
[1646698417295,5.5,2501.1,2499.8,0.02429437]
[1646698417495,5.5,2501.1,2498.9,1.0]
[1646698417496,0.99321422,2500.0,2499.2,1.06829397]
[1646698417691,5.0,2500.8,2499.3,4.991]
[1646698417892,0.30514383,2500.9,2499.8,0.5]
[1646698417893,0.00514383,2500.9,2499.8,0.5]
[1646698418092,0.00514383,2500.9,2499.9,0.491]
[1646698418298,4.2653,2501.1,2500.0,0.491]
[1646698418492,4.2653,2501.1,2500.1,0.491]
[1646698418697,1.0,2501.1,2500.7,0.93115957]
[1646698418895,1.2299,2501.4,2500.8,3.991]
[1646698419093,1.2299,2501.4,2500.8,4.991]
[1646698419294,1.2299,2501.4,2500.8,2.491]
[1646698419498,1.2299,2501.4,2500.8,1.491]
[1646698419696,1.2299,2501.4,2500.8,0.491]
[1646698419895,2.35000319,2501.4,2500.8,0.491]
[1646698420144,2.35000319,2501.4,2501.2,0.02046981]
[1646698420547,1.12010319,2501.4,2501.2,0.02046981]
[1646698420750,0.0583054,2501.5,2501.2,0.02046981]
[1646698421558,0.0001054,2501.5,2501.3,0.491]
[1646698421750,0.0200577,2501.8,2501.5,5.5]
[1646698421953,0.0200577,2501.8,2501.4,4.74133998]
[1646698421954,0.012768,2502.3,2501.7,12.952721]
[1646698422151,0.012768,2502.3,2501.8,16.181]
[1646698422152,6.8e-05,2502.3,2501.8,16.181]
[1646698422354,0.00421274,2503.4,2502.4,5.0]
[1646698422557,0.00421274,2503.4,2502.6,5.5]
[1646698422858,1.02878383,2503.6,2503.1,5.5]
[1646698423057,1.02878383,2503.6,2503.2,4.991]
[1646698423058,0.00842548,2503.6,2503.2,4.991]
[1646698423252,2.548e-05,2503.6,2503.2,6.291]
[1646698423456,2.548e-05,2503.6,2503.2,18.481]
[1646698423457,6.1e-05,2503.4,2503.2,18.481]
[1646698423654,6.1e-05,2503.4,2503.3,15.69]
[1646698423902,6.1e-05,2503.4,2503.3,17.181]
[1646698424091,6.1e-05,2503.4,2503.3,14.681]
[1646698424290,2.548e-05,2503.6,2503.3,2.491]
[1646698424491,2.548e-05,2503.6,2503.3,1.491]
[1646698424690,2.548e-05,2503.6,2503.3,0.491]
[1646698424894,2.548e-05,2503.6,2503.3,1.491]
[1646698425092,1.11215465,2503.5,2503.3,1.0]
[1646698425297,1.11218013,2503.5,2502.5,0.491]
[1646698425500,1.11218013,2503.5,2503.4,3.0]
[1646698426102,2.548e-05,2503.5,2503.4,3.0]
[1646698426699,2.548e-05,2503.5,2503.4,1.0]
[1646698427096,2.548e-05,2503.5,2503.0,0.491]
[1646698427397,2.548e-05,2503.5,2503.0,0.791]
[1646698427639,2.548e-05,2503.5,2502.7,3.0]
[1646698427640,1.10041084,2503.3,2502.7,3.0]